[Event "Live Chess"]
[Site "Chess.com"]
[Date "2024.06.01"]
[Round "-"]
[White "koekoekoe"]
[Black "uselessduffer"]
[Result "0-1"]
[WhiteElo "2070"]
[BlackElo "2445"]
[TimeControl "300"]
[EndTime "12:02:43 PDT"]
[Termination "uselessduffer won on time"]

1. d4 {[%clk 0:04:59.7]} 1... Nf6 {[%clk 0:04:52.2]} 2. Bf4 {[%clk 0:04:59.3]}
2... e6 {[%clk 0:04:49.5]} 3. e3 {[%clk 0:04:58.9]} 3... c5 {[%clk 0:04:47.6]}
4. c3 {[%clk 0:04:58.1]} 4... cxd4 {[%clk 0:04:46.5]} 5. cxd4 {[%clk 0:04:58]}
5... b6 {[%clk 0:04:39.3]} 6. Nc3 {[%clk 0:04:57.5]} 6... Be7 {[%clk 0:04:35.1]}
7. Nf3 {[%clk 0:04:56.9]} 7... O-O {[%clk 0:04:33.6]} 8. Be2 {[%clk 0:04:52.7]}
8... Bb7 {[%clk 0:04:32.1]} 9. h3 {[%clk 0:04:52.2]} 9... Nc6 {[%clk 0:04:24.2]}
10. O-O {[%clk 0:04:49.8]} 10... Rc8 {[%clk 0:04:22.8]} 11. Rc1 {[%clk
0:04:48.4]} 11... d6 {[%clk 0:04:20.8]} 12. Qa4 {[%clk 0:04:41.6]} 12... Na5
{[%clk 0:04:05]} 13. Nb5 {[%clk 0:04:26.6]} 13... Bc6 {[%clk 0:03:32.5]} 14. Qd1
{[%clk 0:04:16.7]} 14... Qd7 {[%clk 0:03:21.4]} 15. a4 {[%clk 0:03:49.5]} 15...
Nd5 {[%clk 0:03:11.9]} 16. Bg3 {[%clk 0:03:42.2]} 16... a6 {[%clk 0:03:03.8]}
17. Nc3 {[%clk 0:03:39.6]} 17... Nxc3 {[%clk 0:03:01.8]} 18. Rxc3 {[%clk
0:03:29.7]} 18... Bxa4 {[%clk 0:03:00.2]} 19. Qa1 {[%clk 0:03:06.2]} 19... Rxc3
{[%clk 0:02:44.2]} 20. bxc3 {[%clk 0:03:05.3]} 20... Bb5 {[%clk 0:02:43]} 21.
Bxb5 {[%clk 0:02:59]} 21... Qxb5 {[%clk 0:02:42.9]} 22. Rb1 {[%clk 0:02:56.7]}
22... Qc6 {[%clk 0:02:39.8]} 23. Qb2 {[%clk 0:02:50.7]} 23... b5 {[%clk
0:02:34.8]} 24. Ra1 {[%clk 0:02:36.5]} 24... Nc4 {[%clk 0:02:31.3]} 25. Qa2
{[%clk 0:02:31.8]} 25... Ra8 {[%clk 0:02:28.5]} 26. Nd2 {[%clk 0:02:22.8]} 26...
Nxd2 {[%clk 0:02:16.2]} 27. Qxd2 {[%clk 0:02:22.7]} 27... d5 {[%clk 0:02:12.7]}
28. f3 {[%clk 0:02:11.4]} 28... a5 {[%clk 0:02:08.5]} 29. Be1 {[%clk 0:02:09.2]}
29... a4 {[%clk 0:02:02]} 30. Qb2 {[%clk 0:02:00.5]} 30... g6 {[%clk 0:01:58.5]}
31. Rb1 {[%clk 0:01:53.8]} 31... Rb8 {[%clk 0:01:52]} 32. Kf2 {[%clk 0:01:36]}
32... Qc4 {[%clk 0:01:49]} 33. Qe2 {[%clk 0:01:24.4]} 33... Qxe2+ {[%clk
0:01:18.8]} 34. Kxe2 {[%clk 0:01:24.3]} 34... Kf8 {[%clk 0:01:17.6]} 35. Kd3
{[%clk 0:01:16.4]} 35... Ke8 {[%clk 0:01:16.7]} 36. e4 {[%clk 0:01:10.2]} 36...
Kd7 {[%clk 0:01:16.1]} 37. exd5 {[%clk 0:01:06.2]} 37... exd5 {[%clk 0:01:16]}
38. Bd2 {[%clk 0:01:03.6]} 38... Bd6 {[%clk 0:01:14.8]} 39. Re1 {[%clk
0:00:55.1]} 39... Re8 {[%clk 0:01:12]} 40. Rb1 {[%clk 0:00:45.6]} 40... Kc6
{[%clk 0:01:10.5]} 41. Be3 {[%clk 0:00:38.6]} 41... h5 {[%clk 0:01:08.1]} 42. g3
{[%clk 0:00:37.4]} 42... Bxg3 {[%clk 0:01:06.3]} 43. f4 {[%clk 0:00:35.9]} 43...
Bh4 {[%clk 0:01:03.8]} 44. Rf1 {[%clk 0:00:27.3]} 44... a3 {[%clk 0:00:55.1]}
45. Ra1 {[%clk 0:00:24.3]} 45... Be7 {[%clk 0:00:52.9]} 46. Bc1 {[%clk
0:00:23.2]} 46... Bd6 {[%clk 0:00:46.4]} 47. Kc2 {[%clk 0:00:19.6]} 47... Re1
{[%clk 0:00:43]} 48. Kb3 {[%clk 0:00:19.2]} 48... Bxf4 {[%clk 0:00:39.4]} 49.
Rxa3 {[%clk 0:00:13.7]} 49... Rxc1 {[%clk 0:00:34.9]} 50. Ra6+ {[%clk
0:00:13.6]} 50... Kd7 {[%clk 0:00:34.1]} 51. Rf6 {[%clk 0:00:13.5]} 51... Bd2
{[%clk 0:00:31.4]} 52. Rxf7+ {[%clk 0:00:12.8]} 52... Ke6 {[%clk 0:00:31.1]} 53.
Rb7 {[%clk 0:00:10.4]} 53... Rxc3+ {[%clk 0:00:30.3]} 54. Kb2 {[%clk 0:00:09.4]}
54... Rc4 {[%clk 0:00:29.5]} 55. Rxb5 {[%clk 0:00:07.9]} 55... Rxd4 {[%clk
0:00:29]} 56. Rb6+ {[%clk 0:00:07.6]} 56... Kf5 {[%clk 0:00:28.5]} 57. Kc2
{[%clk 0:00:06]} 57... Bf4 {[%clk 0:00:27]} 58. Kc3 {[%clk 0:00:04.8]} 58... Be5
{[%clk 0:00:25.4]} 59. Rb8 {[%clk 0:00:02.7]} 59... Rc4+ {[%clk 0:00:23.1]} 60.
Kb3 {[%clk 0:00:01.6]} 60... Rh4 {[%clk 0:00:23]} 61. Rf8+ {[%clk 0:00:00.5]}
61... Kg5 {[%clk 0:00:22]} 0-1

[Event "Live Chess"]
[Site "Chess.com"]
[Date "2024.06.01"]
[Round "-"]
[White "JanMur7"]
[Black "StoreySniper"]
[Result "1/2-1/2"]
[WhiteElo "2288"]
[BlackElo "2547"]
[TimeControl "300"]
[EndTime "12:02:44 PDT"]
[Termination "Game drawn by repetition"]

1. c4 {[%clk 0:04:57.2]} 1... g6 {[%clk 0:04:59]} 2. h4 {[%clk 0:04:51.6]} 2...
Bg7 {[%clk 0:04:58]} 3. h5 {[%clk 0:04:51]} 3... c5 {[%clk 0:04:57.6]} 4. hxg6
{[%clk 0:04:50.3]} 4... hxg6 {[%clk 0:04:56.5]} 5. Rxh8 {[%clk 0:04:50.1]} 5...
Bxh8 {[%clk 0:04:56.3]} 6. Qb3 {[%clk 0:04:47.1]} 6... Nc6 {[%clk 0:04:54.7]} 7.
Qh3 {[%clk 0:04:45.7]} 7... Bf6 {[%clk 0:04:47.9]} 8. Qh7 {[%clk 0:04:42.7]}
8... Kf8 {[%clk 0:04:46.3]} 9. Nf3 {[%clk 0:04:29.9]} 9... d6 {[%clk 0:04:36.4]}
10. a3 {[%clk 0:04:27]} 10... Bg7 {[%clk 0:04:32.7]} 11. d3 {[%clk 0:04:25.1]}
11... Nf6 {[%clk 0:04:30.9]} 12. Qh4 {[%clk 0:04:19.6]} 12... Ng4 {[%clk
0:04:19.5]} 13. Nc3 {[%clk 0:04:08.1]} 13... Nd4 {[%clk 0:04:09.9]} 14. Nxd4
{[%clk 0:04:04.7]} 14... cxd4 {[%clk 0:04:09]} 15. Nd5 {[%clk 0:03:57.6]} 15...
Be6 {[%clk 0:04:04.9]} 16. Nf4 {[%clk 0:03:53.3]} 16... Bf5 {[%clk 0:03:58.8]}
17. g3 {[%clk 0:03:51.2]} 17... e5 {[%clk 0:03:47.6]} 18. Qxd8+ {[%clk
0:03:36.6]} 18... Rxd8 {[%clk 0:03:47.5]} 19. Nd5 {[%clk 0:03:36.1]} 19... Be6
{[%clk 0:03:28.9]} 20. Bg5 {[%clk 0:03:23.6]} 20... f6 {[%clk 0:03:26.1]} 21.
Bd2 {[%clk 0:03:21.4]} 21... f5 {[%clk 0:03:12.1]} 22. Bg5 {[%clk 0:03:13.1]}
22... Rd7 {[%clk 0:03:09.3]} 23. Rc1 {[%clk 0:02:50]} 23... Bh6 {[%clk 0:03:00]}
24. Bxh6+ {[%clk 0:02:45.8]} 24... Nxh6 {[%clk 0:02:59.9]} 25. Bg2 {[%clk
0:02:37.4]} 25... Bxd5 {[%clk 0:02:55.1]} 26. Bxd5 {[%clk 0:02:25.6]} 26... b6
{[%clk 0:02:48.2]} 27. b4 {[%clk 0:02:22.3]} 27... Rc7 {[%clk 0:02:46.9]} 28. f3
{[%clk 0:02:16.1]} 28... Kg7 {[%clk 0:02:34.7]} 29. Kd2 {[%clk 0:02:09.6]} 29...
f4 {[%clk 0:02:22.6]} 30. g4 {[%clk 0:02:06.5]} 30... Nf7 {[%clk 0:01:56.4]} 31.
Bxf7 {[%clk 0:02:04]} 31... Kxf7 {[%clk 0:01:55.8]} 32. Rh1 {[%clk 0:02:03.4]}
32... Kg7 {[%clk 0:01:55]} 33. Rc1 {[%clk 0:01:30.2]} 33... a6 {[%clk
0:01:53.7]} 34. Kc2 {[%clk 0:01:26.4]} 34... Kf6 {[%clk 0:01:47.2]} 35. Kb3
{[%clk 0:01:24.7]} 35... Rh7 {[%clk 0:01:27.8]} 36. c5 {[%clk 0:01:15.3]} 36...
bxc5 {[%clk 0:01:27]} 37. bxc5 {[%clk 0:01:13.8]} 37... Rb7+ {[%clk 0:01:19.4]}
38. Ka2 {[%clk 0:01:10.3]} 38... Rc7 {[%clk 0:01:11.7]} 39. c6 {[%clk
0:00:51.4]} 39... Ke6 {[%clk 0:01:09.6]} 40. Kb3 {[%clk 0:00:44.2]} 40... Kd5
{[%clk 0:00:59.8]} 41. Kb4 {[%clk 0:00:40.9]} 41... Rxc6 {[%clk 0:00:56.3]} 42.
Rxc6 {[%clk 0:00:38.4]} 42... Kxc6 {[%clk 0:00:55.6]} 43. Ka5 {[%clk 0:00:36]}
43... Kb7 {[%clk 0:00:54.7]} 44. a4 {[%clk 0:00:19.5]} 44... Ka7 {[%clk
0:00:53.1]} 45. Kb4 {[%clk 0:00:19.1]} 45... Kb6 {[%clk 0:00:52.6]} 46. Kc4
{[%clk 0:00:16.9]} 46... Kc6 {[%clk 0:00:44.3]} 47. Kb4 {[%clk 0:00:15.6]} 47...
g5 {[%clk 0:00:36.3]} 48. Ka5 {[%clk 0:00:14.7]} 48... Kb7 {[%clk 0:00:35.5]}
49. Kb4 {[%clk 0:00:14.6]} 49... Kb6 {[%clk 0:00:34.6]} 50. Kc4 {[%clk
0:00:14.1]} 50... Kc6 {[%clk 0:00:27.8]} 51. Kb4 {[%clk 0:00:13.3]} 51... d5
{[%clk 0:00:23.4]} 52. Ka5 {[%clk 0:00:12.1]} 52... Kb7 {[%clk 0:00:22.8]} 53.
Kb4 {[%clk 0:00:12]} 53... Kb6 {[%clk 0:00:22.2]} 54. Ka3 {[%clk 0:00:09.7]}
54... Kc5 {[%clk 0:00:20.3]} 55. Kb3 {[%clk 0:00:09]} 55... e4 {[%clk
0:00:17.6]} 56. Ka3 {[%clk 0:00:07.8]} 56... Kb6 {[%clk 0:00:13.5]} 57. Kb3
{[%clk 0:00:06.9]} 57... Kc6 {[%clk 0:00:13]} 58. Kb4 {[%clk 0:00:05.7]} 58...
Kb6 {[%clk 0:00:11.9]} 59. Kb3 {[%clk 0:00:05.3]} 59... Ka5 {[%clk 0:00:11]} 60.
Ka3 {[%clk 0:00:04.6]} 60... exf3 {[%clk 0:00:10]} 61. exf3 {[%clk 0:00:04]}
61... Kb6 {[%clk 0:00:09.9]} 62. Kb4 {[%clk 0:00:03.5]} 62... Kb7 {[%clk
0:00:08.6]} 63. Ka3 {[%clk 0:00:02.9]} 63... Kb6 {[%clk 0:00:08]} 64. Kb3 {[%clk
0:00:02.4]} 64... a5 {[%clk 0:00:07.9]} 65. Ka3 {[%clk 0:00:01.7]} 65... Kc5
{[%clk 0:00:07.6]} 66. Kb3 {[%clk 0:00:01.6]} 66... Kd6 {[%clk 0:00:07.1]} 67.
Ka3 {[%clk 0:00:01.5]} 67... Kc6 {[%clk 0:00:06.8]} 68. Kb3 {[%clk 0:00:01.4]}
68... Kc5 {[%clk 0:00:06.5]} 69. Ka3 {[%clk 0:00:01.3]} 69... Kb6 {[%clk
0:00:06.4]} 70. Kb3 {[%clk 0:00:01.2]} 70... Ka6 {[%clk 0:00:06]} 71. Ka3 {[%clk
0:00:01.1]} 71... Ka7 {[%clk 0:00:05.9]} 72. Kb3 {[%clk 0:00:01]} 72... Ka8
{[%clk 0:00:05.6]} 73. Ka3 {[%clk 0:00:00.9]} 73... Kb8 {[%clk 0:00:05.5]} 74.
Kb3 {[%clk 0:00:00.8]} 74... Kc8 {[%clk 0:00:05.4]} 75. Ka3 {[%clk 0:00:00.7]}
75... Kd8 {[%clk 0:00:05.1]} 76. Kb3 {[%clk 0:00:00.6]} 76... Ke8 {[%clk
0:00:04.6]} 77. Ka3 {[%clk 0:00:00.5]} 77... Kf7 {[%clk 0:00:04.4]} 78. Kb3
{[%clk 0:00:00.4]} 78... Kg6 {[%clk 0:00:04.2]} 79. Ka3 {[%clk 0:00:00.3]} 79...
Kf7 {[%clk 0:00:04.1]} 80. Kb3 {[%clk 0:00:00.2]} 80... Kg6 {[%clk 0:00:04]} 81.
Ka3 {[%clk 0:00:00.1]} 81... Kf7 {[%clk 0:00:03.9]} 1/2-1/2

[Event "Live Chess"]
[Site "Chess.com"]
[Date "2024.06.01"]
[Round "-"]
[White "imchessive"]
[Black "Andysav3"]
[Result "0-1"]
[WhiteElo "1577"]
[BlackElo "1880"]
[TimeControl "300"]
[EndTime "12:02:47 PDT"]
[Termination "Andysav3 won by checkmate"]

1. d4 {[%clk 0:04:57.7]} 1... Nf6 {[%clk 0:04:58.2]} 2. c4 {[%clk 0:04:56.9]}
2... e5 {[%clk 0:04:56.8]} 3. dxe5 {[%clk 0:04:54]} 3... Ng4 {[%clk 0:04:55.4]}
4. Nf3 {[%clk 0:04:53.4]} 4... Bc5 {[%clk 0:04:53.6]} 5. e3 {[%clk 0:04:50.5]}
5... Nc6 {[%clk 0:04:52.8]} 6. Nc3 {[%clk 0:04:49.4]} 6... O-O {[%clk
0:04:49.1]} 7. Be2 {[%clk 0:04:47.9]} 7... Re8 {[%clk 0:04:47]} 8. h3 {[%clk
0:04:46]} 8... Ngxe5 {[%clk 0:04:45.4]} 9. O-O {[%clk 0:04:40.1]} 9... d6 {[%clk
0:04:41.6]} 10. Nd5 {[%clk 0:04:35.8]} 10... Be6 {[%clk 0:04:33.2]} 11. a3
{[%clk 0:04:29.7]} 11... a5 {[%clk 0:04:30.5]} 12. b3 {[%clk 0:04:24]} 12... Qd7
{[%clk 0:04:25.6]} 13. Bb2 {[%clk 0:04:20.9]} 13... f6 {[%clk 0:04:13.1]} 14. e4
{[%clk 0:04:04]} 14... Qf7 {[%clk 0:03:51.3]} 15. Bc3 {[%clk 0:03:49.4]} 15...
Nxf3+ {[%clk 0:03:42.2]} 16. Bxf3 {[%clk 0:03:46.4]} 16... Bxd5 {[%clk
0:03:34.9]} 17. cxd5 {[%clk 0:03:41.8]} 17... Ne5 {[%clk 0:03:31.4]} 18. Bxe5
{[%clk 0:03:35.1]} 18... fxe5 {[%clk 0:03:12.6]} 19. Qc2 {[%clk 0:03:30.2]}
19... g6 {[%clk 0:03:04.3]} 20. Rfc1 {[%clk 0:03:26.2]} 20... h5 {[%clk
0:02:59]} 21. b4 {[%clk 0:03:23]} 21... axb4 {[%clk 0:02:57]} 22. axb4 {[%clk
0:03:22.9]} 22... Bb6 {[%clk 0:02:55.5]} 23. Rxa8 {[%clk 0:03:13.6]} 23... Rxa8
{[%clk 0:02:53.6]} 24. Qe2 {[%clk 0:03:04.7]} 24... Qf4 {[%clk 0:02:48.4]} 25.
Rb1 {[%clk 0:02:55.8]} 25... Kg7 {[%clk 0:02:45.7]} 26. g3 {[%clk 0:02:51.5]}
26... Qxg3+ {[%clk 0:02:43.8]} 27. Bg2 {[%clk 0:02:38.9]} 27... Rf8 {[%clk
0:02:33]} 28. Rf1 {[%clk 0:02:32.4]} 28... h4 {[%clk 0:02:27.8]} 29. Qb5 {[%clk
0:02:15.3]} 29... Rxf2 {[%clk 0:02:13.9]} 30. Qd7+ {[%clk 0:02:11]} 30... Kh6
{[%clk 0:02:11.5]} 31. Qb5 {[%clk 0:01:44.9]} 31... Rxg2+ {[%clk 0:02:05.8]} 32.
Kh1 {[%clk 0:01:41.6]} 32... Qh2# {[%clk 0:02:03.9]} 0-1

[Event "Live Chess"]
[Site "Chess.com"]
[Date "2024.06.01"]
[Round "-"]
[White "Bradfield133"]
[Black "ProfPoisson"]
[Result "0-1"]
[WhiteElo "1912"]
[BlackElo "1278"]
[TimeControl "300"]
[EndTime "12:02:47 PDT"]
[Termination "ProfPoisson won by resignation"]

1. c4 {[%clk 0:04:57.9]} 1... e6 {[%clk 0:04:57.6]} 2. e4 {[%clk 0:04:55.9]}
2... Nc6 {[%clk 0:04:47.7]} 3. Nc3 {[%clk 0:04:53.8]} 3... Bb4 {[%clk 0:04:42]}
4. Nge2 {[%clk 0:04:51.1]} 4... Nf6 {[%clk 0:04:32.7]} 5. g3 {[%clk 0:04:49.9]}
5... O-O {[%clk 0:04:26.2]} 6. Bg2 {[%clk 0:04:47]} 6... d5 {[%clk 0:04:23.3]}
7. cxd5 {[%clk 0:04:34.8]} 7... exd5 {[%clk 0:04:19.7]} 8. e5 {[%clk 0:04:32.3]}
8... Ne4 {[%clk 0:04:14.6]} 9. Nxe4 {[%clk 0:04:24.1]} 9... dxe4 {[%clk
0:04:10.9]} 10. O-O {[%clk 0:04:09.1]} 10... Nxe5 {[%clk 0:04:07.1]} 11. Bxe4
{[%clk 0:04:00.3]} 11... Bh3 {[%clk 0:03:59]} 12. Re1 {[%clk 0:03:54.4]} 12...
f5 {[%clk 0:03:52.1]} 13. Qb3+ {[%clk 0:03:48.6]} 13... Kh8 {[%clk 0:03:45.2]}
14. Qxb4 {[%clk 0:03:38.7]} 14... fxe4 {[%clk 0:03:42.4]} 15. Qxe4 {[%clk
0:03:36.6]} 15... Nf3+ {[%clk 0:03:40.7]} 16. Kh1 {[%clk 0:03:23.6]} 16... Nxe1
{[%clk 0:03:39]} 17. Nf4 {[%clk 0:03:22.1]} 17... Rxf4 {[%clk 0:03:26.3]} 0-1

[Event "Live Chess"]
[Site "Chess.com"]
[Date "2024.06.01"]
[Round "-"]
[White "Eva3337"]
[Black "TigerTank70"]
[Result "0-1"]
[WhiteElo "1143"]
[BlackElo "2193"]
[TimeControl "300"]
[EndTime "12:03:15 PDT"]
[Termination "TigerTank70 won by checkmate"]

1. e4 {[%clk 0:04:55.6]} 1... e5 {[%clk 0:04:59.1]} 2. Nf3 {[%clk 0:04:54.3]}
2... Nc6 {[%clk 0:04:58.6]} 3. c3 {[%clk 0:04:53.3]} 3... d5 {[%clk 0:04:56.5]}
4. exd5 {[%clk 0:04:48.9]} 4... Qxd5 {[%clk 0:04:54.5]} 5. Qe2 {[%clk
0:04:42.3]} 5... Be7 {[%clk 0:04:49.4]} 6. c4 {[%clk 0:04:21.8]} 6... Qa5 {[%clk
0:04:44.1]} 7. Nc3 {[%clk 0:04:15.2]} 7... Bg4 {[%clk 0:04:41.2]} 8. h3 {[%clk
0:04:12.9]} 8... Nd4 {[%clk 0:04:36.2]} 9. Qe4 {[%clk 0:03:44]} 9... Bf5 {[%clk
0:04:23.6]} 10. Qxb7 {[%clk 0:03:34.9]} 10... Nc2+ {[%clk 0:04:22.5]} 11. Kd1
{[%clk 0:03:28.4]} 11... Rd8 {[%clk 0:04:21.5]} 12. c5 {[%clk 0:02:50.8]} 12...
Nxa1 {[%clk 0:03:55.9]} 13. Nxe5 {[%clk 0:02:13]} 13... Qxc5 {[%clk 0:03:44.7]}
14. Nc6 {[%clk 0:01:50.9]} 14... Qxf2 {[%clk 0:03:37.2]} 15. Qxc7 {[%clk
0:01:27.3]} 15... Bc2# {[%clk 0:03:34.6]} 0-1

[Event "Live Chess"]
[Site "Chess.com"]
[Date "2024.06.01"]
[Round "-"]
[White "Delacorta"]
[Black "NAZRIZ1977"]
[Result "0-1"]
[WhiteElo "1481"]
[BlackElo "2125"]
[TimeControl "300"]
[EndTime "12:03:27 PDT"]
[Termination "NAZRIZ1977 won by checkmate"]

1. d4 {[%clk 0:04:55.7]} 1... Nf6 {[%clk 0:04:56.3]} 2. Nf3 {[%clk 0:04:55.6]}
2... g6 {[%clk 0:04:55]} 3. e3 {[%clk 0:04:55.5]} 3... Bg7 {[%clk 0:04:53.9]} 4.
Bd3 {[%clk 0:04:55.4]} 4... O-O {[%clk 0:04:52]} 5. b3 {[%clk 0:04:55.3]} 5...
d5 {[%clk 0:04:51]} 6. Bb2 {[%clk 0:04:55.2]} 6... c5 {[%clk 0:04:49.8]} 7. Nbd2
{[%clk 0:04:55.1]} 7... Nc6 {[%clk 0:04:48.8]} 8. O-O {[%clk 0:04:54.4]} 8...
Nd7 {[%clk 0:04:48.1]} 9. Rb1 {[%clk 0:04:48]} 9... e5 {[%clk 0:04:46.9]} 10.
dxe5 {[%clk 0:04:45.4]} 10... Ndxe5 {[%clk 0:04:46.1]} 11. Nxe5 {[%clk
0:04:43.1]} 11... Nxe5 {[%clk 0:04:44.7]} 12. Nf3 {[%clk 0:04:38.1]} 12... Nxf3+
{[%clk 0:04:24.3]} 13. Qxf3 {[%clk 0:04:32.9]} 13... Bxb2 {[%clk 0:04:24.2]} 14.
Rxb2 {[%clk 0:04:31.4]} 14... Be6 {[%clk 0:04:24.1]} 15. Rd1 {[%clk 0:04:27.7]}
15... Qa5 {[%clk 0:04:21.5]} 16. Qe2 {[%clk 0:04:14.3]} 16... Rfe8 {[%clk
0:04:16.1]} 17. Qd2 {[%clk 0:04:13.2]} 17... Qa3 {[%clk 0:04:12.4]} 18. c4
{[%clk 0:04:05.3]} 18... Red8 {[%clk 0:03:57.9]} 19. cxd5 {[%clk 0:03:37.4]}
19... Rxd5 {[%clk 0:03:56.2]} 20. Qc3 {[%clk 0:03:36.4]} 20... Rad8 {[%clk
0:03:49.5]} 21. Rdd2 {[%clk 0:03:34]} 21... Qb4 {[%clk 0:03:15.7]} 22. Qc2
{[%clk 0:03:01.7]} 22... Bf5 {[%clk 0:03:04.5]} 23. a3 {[%clk 0:02:38.3]} 23...
Bxd3 {[%clk 0:03:01.1]} 24. Rxd3 {[%clk 0:02:15.4]} 24... Qe1# {[%clk
0:02:58.8]} 0-1

[Event "Live Chess"]
[Site "Chess.com"]
[Date "2024.06.01"]
[Round "-"]
[White "Zhevzh1k7"]
[Black "LL220284LL"]
[Result "0-1"]
[WhiteElo "1085"]
[BlackElo "2562"]
[TimeControl "300"]
[EndTime "12:03:33 PDT"]
[Termination "LL220284LL won by resignation"]

1. e4 {[%clk 0:04:56.5]} 1... d5 {[%clk 0:04:58.7]} 2. exd5 {[%clk 0:04:49.8]}
2... Qxd5 {[%clk 0:04:58.6]} 3. Nc3 {[%clk 0:04:47]} 3... Qa5 {[%clk 0:04:57.7]}
4. Nf3 {[%clk 0:04:45.4]} 4... Nf6 {[%clk 0:04:57.2]} 5. Bc4 {[%clk 0:04:43.7]}
5... Bg4 {[%clk 0:04:55.2]} 6. h3 {[%clk 0:04:40]} 6... Bh5 {[%clk 0:04:54.1]}
7. O-O {[%clk 0:04:36.4]} 7... Nbd7 {[%clk 0:04:51.7]} 8. d3 {[%clk 0:04:35.3]}
8... c6 {[%clk 0:04:49.3]} 9. Ne4 {[%clk 0:04:29.4]} 9... Nxe4 {[%clk
0:04:42.7]} 10. dxe4 {[%clk 0:04:28.1]} 10... Ne5 {[%clk 0:04:36]} 11. Be2
{[%clk 0:04:22.8]} 11... Nxf3+ {[%clk 0:04:34.7]} 12. Bxf3 {[%clk 0:04:21.5]}
12... Bxf3 {[%clk 0:04:34.6]} 13. Qxf3 {[%clk 0:04:20]} 13... e6 {[%clk
0:04:34.5]} 14. Rd1 {[%clk 0:04:17.8]} 14... Be7 {[%clk 0:04:31.3]} 15. Bd2
{[%clk 0:04:14.6]} 15... Qb6 {[%clk 0:04:24.9]} 16. Bc3 {[%clk 0:04:10.4]} 16...
O-O {[%clk 0:04:22.3]} 17. Qg3 {[%clk 0:04:04.1]} 17... f6 {[%clk 0:04:15.4]}
18. e5 {[%clk 0:03:56.5]} 18... f5 {[%clk 0:04:13.9]} 19. Rd7 {[%clk 0:03:48.7]}
19... Rf7 {[%clk 0:04:09.9]} 20. Rad1 {[%clk 0:03:37.3]} 20... Raf8 {[%clk
0:04:03.8]} 21. Qh4 {[%clk 0:03:26.9]} 21... Bxh4 {[%clk 0:04:01.8]} 22. Rxf7
{[%clk 0:03:24]} 22... Rxf7 {[%clk 0:04:01.7]} 23. Rd2 {[%clk 0:03:18]} 0-1

[Event "Live Chess"]
[Site "Chess.com"]
[Date "2024.06.01"]
[Round "-"]
[White "Tushinskiy"]
[Black "Grace6363"]
[Result "1-0"]
[WhiteElo "2225"]
[BlackElo "1150"]
[TimeControl "300"]
[EndTime "12:03:39 PDT"]
[Termination "Tushinskiy won by resignation"]

1. d4 {[%clk 0:04:56.5]} 1... Nf6 {[%clk 0:04:58.3]} 2. c3 {[%clk 0:04:56.4]}
2... g6 {[%clk 0:04:56.9]} 3. Nf3 {[%clk 0:04:56.3]} 3... d6 {[%clk 0:04:55.8]}
4. Bf4 {[%clk 0:04:55.9]} 4... Bf5 {[%clk 0:04:54.1]} 5. Bg3 {[%clk 0:04:55.8]}
5... Bg7 {[%clk 0:04:53.1]} 6. Nbd2 {[%clk 0:04:55.7]} 6... O-O {[%clk
0:04:52.2]} 7. e3 {[%clk 0:04:54.6]} 7... Nbd7 {[%clk 0:04:51.5]} 8. Be2 {[%clk
0:04:53.3]} 8... b6 {[%clk 0:04:50.5]} 9. O-O {[%clk 0:04:51.5]} 9... c5 {[%clk
0:04:49.1]} 10. a4 {[%clk 0:04:50.9]} 10... Rc8 {[%clk 0:04:44.9]} 11. Re1
{[%clk 0:04:49.9]} 11... e5 {[%clk 0:04:36.1]} 12. dxe5 {[%clk 0:04:44]} 12...
dxe5 {[%clk 0:04:35.2]} 13. Bb5 {[%clk 0:04:38.4]} 13... e4 {[%clk 0:04:27.3]}
14. Ne5 {[%clk 0:04:37.2]} 14... a6 {[%clk 0:04:12.6]} 15. Bxa6 {[%clk
0:04:34.6]} 15... Ra8 {[%clk 0:04:07.4]} 16. Bb5 {[%clk 0:04:33]} 16... Nxe5
{[%clk 0:04:06.3]} 17. Bxe5 {[%clk 0:04:32.9]} 17... Nd5 {[%clk 0:04:00]} 18.
Bxg7 {[%clk 0:04:32.8]} 18... Kxg7 {[%clk 0:03:59]} 19. Nc4 {[%clk 0:04:31.1]}
19... h5 {[%clk 0:03:45.2]} 20. Qd2 {[%clk 0:04:24.1]} 20... Bg4 {[%clk
0:03:41.2]} 21. Bc6 {[%clk 0:04:19.8]} 21... Ra7 {[%clk 0:03:28.9]} 22. Qxd5
{[%clk 0:04:16.8]} 22... Qxd5 {[%clk 0:03:25.1]} 23. Bxd5 {[%clk 0:04:16.7]}
23... Rd8 {[%clk 0:03:21.2]} 24. Bxe4 {[%clk 0:04:15.1]} 24... Be6 {[%clk
0:03:16.2]} 25. Nxb6 {[%clk 0:04:13.7]} 25... Rb8 {[%clk 0:03:01.2]} 26. a5
{[%clk 0:04:11.1]} 26... f5 {[%clk 0:02:53.6]} 27. Bf3 {[%clk 0:04:09.3]} 27...
g5 {[%clk 0:02:51.5]} 28. b4 {[%clk 0:04:07.9]} 28... g4 {[%clk 0:02:49.5]} 29.
Bc6 {[%clk 0:04:06.2]} 29... Rc7 {[%clk 0:02:42.6]} 30. b5 {[%clk 0:04:04.9]}
30... Kf6 {[%clk 0:02:18.4]} 31. Red1 {[%clk 0:03:59.5]} 31... Bb3 {[%clk
0:02:13.9]} 32. Rd6+ {[%clk 0:03:56.2]} 32... Ke5 {[%clk 0:02:13]} 33. Rh6
{[%clk 0:03:54.2]} 33... Bf7 {[%clk 0:02:05.3]} 34. Nd7+ {[%clk 0:03:51.5]}
34... Rxd7 {[%clk 0:01:59.5]} 35. Bxd7 {[%clk 0:03:51.4]} 1-0

[Event "Live Chess"]
[Site "Chess.com"]
[Date "2024.06.01"]
[Round "-"]
[White "Dhaydon19"]
[Black "grillage"]
[Result "1-0"]
[WhiteElo "2693"]
[BlackElo "1879"]
[TimeControl "300"]
[EndTime "12:03:40 PDT"]
[Termination "Dhaydon19 won by resignation"]

1. d4 {[%clk 0:04:57.5]} 1... e6 {[%clk 0:04:57.8]} 2. Nf3 {[%clk 0:04:57.2]}
2... Nf6 {[%clk 0:04:55.8]} 3. g3 {[%clk 0:04:56.9]} 3... b5 {[%clk 0:04:53.1]}
4. c3 {[%clk 0:04:56.3]} 4... Bb7 {[%clk 0:04:52.5]} 5. Bg2 {[%clk 0:04:56]}
5... Be7 {[%clk 0:04:50.2]} 6. O-O {[%clk 0:04:55.6]} 6... O-O {[%clk
0:04:48.9]} 7. Nbd2 {[%clk 0:04:55.2]} 7... d5 {[%clk 0:04:42]} 8. Ne5 {[%clk
0:04:53.4]} 8... c5 {[%clk 0:04:37.8]} 9. dxc5 {[%clk 0:04:52.1]} 9... Bxc5
{[%clk 0:04:35.4]} 10. Qc2 {[%clk 0:04:51.4]} 10... Nbd7 {[%clk 0:04:32.4]} 11.
Nxd7 {[%clk 0:04:50.3]} 11... Qxd7 {[%clk 0:04:31.3]} 12. Nf3 {[%clk 0:04:50]}
12... Rfc8 {[%clk 0:04:25]} 13. a3 {[%clk 0:04:47.9]} 13... Bb6 {[%clk
0:04:16.3]} 14. Qb3 {[%clk 0:04:43.6]} 14... a6 {[%clk 0:04:10.8]} 15. Bf4
{[%clk 0:04:41.5]} 15... d4 {[%clk 0:03:55.8]} 16. cxd4 {[%clk 0:04:38.2]} 16...
Bd5 {[%clk 0:03:38.1]} 17. Qd1 {[%clk 0:04:33.5]} 17... Nh5 {[%clk 0:03:24.6]}
18. Bd2 {[%clk 0:03:33.6]} 18... Rc7 {[%clk 0:03:17.8]} 19. Bc3 {[%clk
0:03:30.9]} 19... Rac8 {[%clk 0:03:15.2]} 20. Ne5 {[%clk 0:03:29.5]} 20... Qe8
{[%clk 0:03:07.5]} 21. e4 {[%clk 0:03:28.4]} 21... Bc4 {[%clk 0:03:05.4]} 22.
Nxc4 {[%clk 0:03:27]} 22... Rxc4 {[%clk 0:03:04.4]} 23. Qxh5 {[%clk 0:03:26.6]}
1-0